{"text_format":"1","workbook":"xlsx","n_sheets":3,"sheets":["Krok 1","Krok 2","Krok 3"],"not_rendered":{"charts":0,"images":2,"macros":1,"external_links":1,"defined_names":8,"comments":0,"pivot_tables":0},"unopened":[],"bounds":{"document_bytes":16777216,"sheet_cells":100000,"rows_first":2000,"rows_last":500,"rows_between":2000,"halvings":0,"cell_chars":16384,"cell_head_chars":4096},"cells_cut":0,"cells_raw":0,"read":"whole","date_system":"1900"}

{"sheet":"Krok 1","index":0,"n_rows":10,"n_cols":3,"rows_kept":10,"cut":false,"hidden":false,"merged":[[1,1,1,5]]}
[]
[null,"Konfigurator oferty SPE w ramach Dotacji celowej dla uczniów posiadających orzeczenie o potrzebie kształcenia  specjalnego"]
[]
[null,null,"Imię i nazwisko"]
[]
[null,null,"Adres szkoły"]
[]
[null,null,"Dane kontaktowe"]
[]
[null,null,"Dodatkowe informacje/notatki"]

{"sheet":"Krok 2","index":1,"n_rows":294,"n_cols":7,"rows_kept":294,"cut":false,"hidden":false,"merged":[[100,4,102,4],[100,5,102,5],[100,6,102,6],[83,4,86,4],[83,5,86,5],[83,6,86,6],[88,4,91,4],[88,5,91,5],[88,6,91,6],[78,6,79,6],[48,4,49,4],[48,5,49,5],[48,6,49,6],[51,4,52,4],[51,5,52,5],[51,6,52,6],[96,4,98,4],[96,5,98,5],[96,6,98,6],[35,5,38,5],[35,6,38,6],[40,4,43,4],[40,5,43,5],[40,6,43,6],[7,4,8,4],[7,5,8,5],[7,6,8,6],[182,0,189,0],[173,0,178,0],[7,0,8,0],[40,0,43,0],[35,0,38,0],[75,0,76,0],[78,0,79,0],[10,0,11,0],[48,0,49,0],[51,0,52,0],[29,0,31,0],[75,4,76,4],[75,5,76,5],[75,6,76,6],[78,4,79,4],[78,5,79,5],[190,0,192,0],[24,0,24,6],[26,4,27,4],[26,5,27,5],[81,0,81,6],[45,0,45,6],[33,0,33,6],[72,0,72,6],[67,0,67,6],[26,0,27,0],[26,6,27,6],[141,0,146,0],[147,0,149,0],[150,0,155,0],[96,0,98,0],[100,0,102,0],[29,4,31,4],[29,6,31,6],[29,5,31,5],[35,4,38,4],[156,0,158,0],[159,0,163,0],[164,0,169,0],[170,0,172,0],[0,0,0,6],[179,0,181,0],[1,0,1,6],[2,0,2,6],[4,0,4,6],[13,0,13,6],[20,0,20,6],[10,6,11,6],[10,5,11,5],[3,0,3,6],[93,0,93,6],[110,0,110,5],[104,0,104,6],[121,0,125,0],[126,0,128,0],[129,0,131,0],[132,0,137,0],[138,0,140,0],[10,4,11,4],[54,0,54,6],[112,0,115,0],[116,0,120,0],[83,0,86,0],[88,0,91,0],[193,0,200,0],[201,0,203,0],[204,0,206,0],[207,0,208,0],[209,0,212,0],[282,0,293,0],[213,0,219,0],[220,0,221,0],[224,0,229,0],[232,0,234,0],[236,0,238,0],[239,0,246,0],[247,0,249,0],[252,0,253,0],[255,0,257,0],[258,0,263,0],[264,0,275,0],[276,0,281,0]]}
[]
["Szkoła Podstawowa Ogólnodostępna - SPE"]
["Propozycje Zestawów"]
["Ceny publikacji w Zestawach są dostosowane, aby umożliwić wykorzystanie pełnej kwoty dotacji po zakupie podręczników i ćwiczeń dla normy"]
["Klasy 1–3. Propozycje materiałów ćwiczeniowych \n(wartość dotacji pozostająca na dodatkowe materiały dla uczniów z niepełnosprawnością intelektualną w stopniu lekkim - 98,01 zł)"]
["Zestaw","Tytuł","KH","Cena  pojedynczego egz.","Cena w zestawie","Liczba egz.","Wartość"]
[]
["Zestaw 1","Funkcje psychofizyczne. Karty pracy. Grafomotoryka. Poziom 1","086531",73,98.01,null,{"$f":"E8*F8","v":0}]
[null,"Pewny start. A. Zestaw. Karty pracy. Jesień, zima, Wiosna, lato","086567",94]
[]
["Zestaw 2","Pewny start. A. Karty pracy. Czytanie, pisanie","086565",55,98.01,null,{"$f":"E11*F11","v":0}]
["Zestaw 6","Pewny start. A. Karty pracy. Plastyka, grafomotoryka","086566",55]
[]
["Klasy 4–8. Propozycje materiałów ćwiczeniowych \n(wartość dotacji pozostająca na dodatkowe materiały dla uczniów z niepełnosprawnością intelektualną w stopniu lekkim - 49,01 zł)"]
["Zestaw","Tytuł","KH","Cena  pojedynczego egz.","Cena w zestawie","Liczba egz.","Wartość"]
[]
["Zestaw 3","Pewny start D Zestaw. Karty pracy. Jesień, zima, Wiosna, lato","086586",85,49.01,null,{"$f":"E17*F17","v":0}]
[]
["Zestaw 4","PEWNY START. H Zestaw. Karty pracy. Jesień, zima, Wiosna, lato","086669",94,49.01,null,{"$f":"E19*F19","v":0}]
[]
["Klasa 1. Propozycje materiałów edukacyjnych \n(wartość dotacji pozostająca na dodatkowe materiały dla uczniów z niepełnosprawnością intelektualną w stopniu lekkim - 212,06 zł)"]
["Zestaw","Tytuł","KH","Cena  pojedynczego egz.","Cena w zestawie","Liczba egz.","Wartość"]
["Zestaw 5","Pewny start. A. Zestaw. Moja książka, Codziennik szkolny Funkcjonowanie, komunikacja, kreatywność","086561",231,212.06,null,{"$f":"E23*F23","v":0}]
[]
["Klasa 4. Propozycje materiałów edukacyjnych \n(wartość dotacji pozostająca na dodatkowe materiały dla uczniów z niepełnosprawnością intelektualną w stopniu lekkim - 241,76 zł)"]
["Zestaw","Tytuł","KH","Cena  pojedynczego egz.","Cena w zestawie","Liczba egz.","Wartość"]
["Zestaw 6","Pewny start D Moja książka","086582",139,241.76,null,{"$f":"E27*F27","v":0}]
[null,"Pewny start D Codziennik szkolny. Funkcjonowanie","086583",116]
[]
["Zestaw 7","Pewny start D Codziennik szkolny. Funkcjonowanie","086583",116,241.76,null,{"$f":"E30*F30","v":0}]
[null,"Pewny start D Codziennik szkolny. Komunikacja","086584",116]
[null,"Pewny start D Codziennik szkolny. Kreatywność","086585",116]
[]
["Klasa 7. Propozycje materiałów edukacyjnych \n(wartość dotacji pozostająca na dodatkowe materiały dla uczniów z niepełnosprawnością intelektualną w stopniu lekkim - 431,24 zł)"]
[]
["Zestaw 8","Pewny start G Codziennik szkolny. Kreatywność","086608",116,431.24,null,{"$f":"E36*F36","v":0}]
[null,"Pewny start G Codziennik szkolny. Funkcjonowanie 1","086603",116]
[null,"Pewny start G Codziennik szkolny. Funkcjonowanie 2","086604",116]
[null,"Pewny start G Codziennik szkolny. Funkcjonowanie 3","086605",116]
[]
["Zestaw 9","Pewny start G Moja książka","086602",136,431.24,null,{"$f":"E41*F41","v":0}]
[null,"Pewny start G Codziennik szkolny. Komunikacja 1","086606",116]
[null,"Pewny start G Codziennik szkolny. Komunikacja 2","086607",116]
[null,"Pewny start G Codziennik szkolny. Kreatywność","086608",116]
[]
["Klasy 1–3 Propozycje materiałów ćwiczeniowych \n(wartość dotacji pozostająca na dodatkowe materiały dla uczniów z autyzmem - 105,54 zł)"]
["Zestaw","Tytuł","KH","Cena  pojedynczego egz.","Cena w zestawie","Liczba egz.","Wartość"]
[]
["Zestaw 10","Funkcje psychofizyczne. Karty pracy. Grafomotoryka. Poziom 1","086531",73,105.54,null,{"$f":"F49*E49","v":0}]
[null,"Pewny start. A. Karty pracy. Czytanie, pisanie","086565",55]
[]
["Zestaw 11","Funkcje psychofizyczne. Karty pracy. Percepcja wzrokowa. Poziom 1","086533",73,105.54,null,{"$f":"E52*F52","v":0}]
[null,"Pewny start. A. Karty pracy. Plastyka, grafomotoryka","086566",55]
[]
["Klasy 4–8 Propozycje materiałów ćwiczeniowych \n(wartość dotacji pozostająca na dodatkowe materiały dla uczniów z autyzmem - 52,27 zł)"]
["Zestaw","Tytuł","KH","Cena  pojedynczego egz.","Cena w zestawie","Liczba egz.","Wartość"]
[]
["Zestaw 12","Funkcje psychofizyczne. Karty pracy. Koncentracja uwagi. Poziom 1","086532",73,52.27,null,{"$f":"E58*F58","v":0}]
[]
["Zestaw 13","Funkcje psychofizyczne. Karty pracy. Percepcja słuchowa. Poziom 1","086534",73,52.27,null,{"$f":"E60*F60","v":0}]
[]
["Zestaw 14","Funkcje psychofizyczne.Karty pracy. Orientacja przestrzenna. Poziom 1","086535",73,52.27,null,{"$f":"E62*F62","v":0}]
[]
["Zestaw 15","Funkcje psychofizyczne. Karty pracy. Funkcjonowanie społeczne. Poziom 1","086536",73,52.27,null,{"$f":"E64*F64","v":0}]
[]
["Zestaw 16","Funkcje psychofizyczne. Karty pracy. Wypowiedzi ustne i pisemne. Poziom1","086537",73,52.27,null,{"$f":"E66*F66","v":0}]
[]
["Klasa 1. Propozycje materiałów edukacyjnych \n(wartość dotacji pozostająca na dodatkowe materiały dla uczniów z autyzmem - 212,06 zł)"]
["Zestaw","Tytuł","KH","Cena  pojedynczego egz.","Cena w zestawie","Liczba egz.","Wartość"]
[]
["Zestaw 17","Pewny start. A. Zestaw. Moja książka, Codziennik szkolny Funkcjonowanie, komunikacja, kreatywność","086561",231,212.06,null,{"$f":"E71*F71","v":0}]
[]
["Klasa 4. Propozycje materiałów edukacyjnych \n(wartość dotacji pozostająca na dodatkowe materiały dla uczniów z autyzmem - 241,76zł)"]
["Zestaw","Tytuł","KH","Cena  pojedynczego egz.","Cena w zestawie","Liczba egz.","Wartość"]
[]
["Zestaw 18","Pewny start D Moja książka","086582",139,241.76,null,{"$f":"E76*F76","v":0}]
[null,"Pewny start D Codziennik szkolny. Funkcjonowanie","086583",116]
[]
["Zestaw 19","Pewny start D Codziennik szkolny. Komunikacja","086584",116,241.76,null,{"$f":"E79*F79","v":0}]
[null,"Pewny start D Moja książka","086582",139]
[]
["Klasa7. Propozycje materiałów edukacyjnych \n(wartość dotacji pozostająca na dodatkowe materiały dla uczniów z autyzmem - 431,24 zł)"]
[]
["Zestaw 20","Pewny start H Moja książka","086662",157,431.24,null,{"$f":"E84*F84","v":0}]
[null,"Pewny start G Codziennik szkolny. Funkcjonowanie 1","086603",116]
[null,"Pewny start G Codziennik szkolny. Funkcjonowanie 2","086604",116]
[null,"Pewny start G Codziennik szkolny. Funkcjonowanie 3","086605",116]
[]
["Zestaw 21","Pewny start G Moja książka","086602",136,431.24,null,{"$f":"E89*F89","v":0}]
[null,"Pewny start G Codziennik szkolny. Komunikacja 1","086606",116]
[null,"Pewny start G Codziennik szkolny. Komunikacja 2","086607",116]
[null,"Pewny start G Codziennik szkolny. Kreatywność","086608",116]
[]
["Klasy 1–3. Propozycje materiałów ćwiczeniowych \n(wartość dotacji pozostająca na dodatkowe materiały dla uczniów z niepełnosprawnością intelektualną w stopniu umiarkowanym lub znacznym - 117,61 zł)"]
["Zestaw","Tytuł","KH","Cena  pojedynczego egz.","Cena w zestawie","Liczba egz.","Wartość"]
[]
["Zestaw 22","Łatwiejszy PEWNY START. POZIOM A. CZYTANIE I PISANIE. Karty pracy",86730,50,117.61,null,{"$f":"E97*F97","v":0}]
[null,"Łatwiejszy PEWNY START. POZIOM A. JESIEŃ, ZIMA. karty pracy",86729,50]
[null,"Łatwiejszy PEWNY START. POZIOM A. MATEMATYKA. karty pracy",86731,50]
[]
["Zestaw 23","Łatwiejszy PEWNY START. POZIOM A. CZYTANIE I PISANIE. Karty pracy",86730,50,117.61,null,{"$f":"E101*F101","v":0}]
[null,"Łatwiejszy PEWNY START. POZIOM A. JESIEŃ, ZIMA. karty pracy",86729,50]
[null,"Łatwiejszy PEWNY START. POZIOM A. WIOSNA, LATO. karty pracy",86728,50]
[]
["Klasa 1. Propozycje materiałów edukacyjnych \n(wartość dotacji pozostająca na dodatkowe materiały dla uczniów z niepełnosprawnością intelektualną w stopniu umiarkowanym lub znacznym - 117,81 zł)"]
["Zestaw","Tytuł","KH","Cena  pojedynczego egz.","Cena w zestawie","Liczba egz.","Wartość"]
[]
["Zestaw 24","Łatwiejszy Pewny start. POZIOM A. ZESTAW materiały edukacyjne","086721",240,117.81,null,{"$f":"E108*F108","v":0}]
[]
[]
["PEŁNA LISTA PUBLIKACJI "]
["Rodzaj","Tytuł","KH","Cena  pojedynczego egz.","Ilość egz.","Wartość"]
["MATERIAŁY EDUKACYJNE","Łatwiejszy Pewny start. POZIOM A. POROZUMIEWANIE SIĘ. materiał edukacyjny","086722",83,null,{"$f":"E113*D113","v":0}]
[null,"Łatwiejszy Pewny start. POZIOM A. EDUKACJA OSOBISTA I ZDROWOTNA materiał edukacyjny","086725",83,null,0]
[null,"Łatwiejszy Pewny start. POZIOM A. EDUKACJA ŚRODOWISKOWA I SPOŁECZNA. materiał edukacyjny","086723",83,null,0]
[null,"Łatwiejszy Pewny start. POZIOM A. ZESTAW materiały edukacyjne","086721",240,null,0]
["MATERIAŁY ĆWICZENIOWE","Łatwiejszy Pewny start. POZIOM A. CZYTANIE I PISANIE. Karty pracy","086730",50,null,0]
[null,"Łatwiejszy Pewny start. POZIOM A. JESIEŃ, ZIMA. karty pracy","086729",50,null,0]
[null,"Łatwiejszy Pewny start. POZIOM A. WIOSNA, LATO. karty pracy","086728",50,null,0]
[null,"Łatwiejszy Pewny start. POZIOM A. MATEMATYKA. karty pracy","086731",50,null,0]
[null,"Łatwiejszy Pewny start. POZIOM A. ZESTAW karty pracy","086727",185,null,0]
["MATERIAŁY EDUKACYJNE","Łatwiejszy Pewny start. POZIOM D. POROZUMIEWANIE SIĘ. materiał edukacyjny","086742",121,null,0]
[null,"Łatwiejszy Pewny start. POZIOM D. EDUKACJA ŚRODOWISKOWA. materiał edukacyjny","086743",121,null,0]
[null,"Łatwiejszy Pewny start. POZIOM D. EDUKACJA SPOŁECZNA. materiał edukacyjny","086744",121,null,0]
[null,"Łatwiejszy Pewny start. POZIOM D. EDUKACJA OSOBISTA I  ZDROWOTNA. materiał edukacyjny","086745",121,null,0]
[null,"Łatwiejszy Pewny start. POZIOM D. ZESTAW materiały edukacyjne","086741",450,null,0]
["MATERIAŁY ĆWICZENIOWE","Łatwiejszy Pewny start. POZIOM D. JESIEŃ, ZIMA. karty pracy","086749",50,null,0]
[null,"Łatwiejszy Pewny start. POZIOM D. WIOSNA, LATO. karty pracy","086748",50,null,0]
[null,"Łatwiejszy Pewny start. POZIOM D. ZESTAW karty pracy","086747",94,null,0]
["MATERIAŁY EDUKACYJNE","Pewny start. A. Zestaw. Moja książka, Codziennik szkolny Funkcjonowanie, komunikacja, kreatywność","086561",231,null,{"$f":"E130*D130","v":0}]
[null,"Pewny start A Moja książka","086562",132,null,{"$f":"E131*D131","v":0}]
[null,"Pewny start A Codziennik szkolny Funkcjonowanie, komunikacja, kreatywność","086563",116,null,{"$f":"E132*D132","v":0}]
["MATERIAŁY ĆWICZENIOWE","Pewny start. A. Zestaw. Karty pracy. Jesień, zima, Wiosna, lato","086567",94,null,0]
[null,"Pewny start. A. Zestaw. Karty pracy. Czytanie, pisanie, Plastyka, grafomotoryka","086564",94,null,0]
[null,"Pewny start A Karty pracy Jesień, zima","086568",55,null,0]
[null,"Pewny start. A Karty pracy Wiosna, lato","086569",55,null,0]
[null,"Pewny start A Karty pracy Pisanie, czytanie","086565",55,null,0]
[null,"Pewny start. A. Karty pracy Plastyka, grafomotoryka","086566",55,null,0]
["MATERIAŁY EDUKACYJNE","Pewny start. B Zestaw Moja książka. Codziennik. Funkcjonowanie, komunikacja, kreatywność","086621",231,null,0]
[null,"Pewny start. B Moja książka","086622",132,null,0]
[null,"Pewny start. B Codziennik szkolny. Funkcjonowanie, komunikacja, kreatywność","086623",116,null,0]
["MATERIAŁY ĆWICZENIOWE","Pewny start. B Zestaw Karty pracy. Czytanie, pisanie. Plastyka, grafomotoryka","086624",94,null,0]
[null,"Pewny start. B Zestaw Zestaw. Karty pracy. Jesień, zima, Wiosna, lato","086627",94,null,0]
[null,"Pewny start. B Karty pracy Jesień, zima","086628",55,null,0]
[null,"Pewny start. B Karty pracy  Wiosna, lato","086629",55,null,0]
[null,"Pewny start. B Karty pracy Pisanie, czytanie","086625",55,null,0]
[null,"Pewny start. B Karty pracy Plastyka, grafomotoryka","086626",55,null,0]
["MATERIAŁY EDUKACYJNE","Pewny start. C Pakiet edukacyjny zestaw moja książka. Codziennik. Funkcjonowanie,komunikacja,kreatywność",86681,231,null,0]
[null,"Pewny start C Moja książka",86682,132,null,0]
[null,"Pewny start C Codziennik fun/kom/kre",86683,116,null,0]
["MATERIAŁY ĆWICZENIOWE","Pewny start. C Pakiet ćwiczeniowy 1 Czytanie, pisanie. Matematyka",86684,94,null,0]
[null,"Pewny start. C Pakiet ćwiczeniowy 2-Jesień, zima, wiosna, lato",86687,94,null,0]
[null,"Pewny start C Karty pracy  jesień/zima",86688,55,null,0]
[null,"Pewny start. C Karty pracy 2 wiosna/lato",86689,55,null,0]
[null,"Pewny start. C Karty pracy pisanie/czytanie",86685,55,null,0]
[null,"Pewny start. C Karty pracy plastyka/grafomotoryka",86686,55,null,0]
["MATERIAŁY EDUKACYJNE","Pewny start D Zestaw Moja książka, Codziennik szkolny. Funkcjonowanie, Codziennik szkolny. Komunikacja, Codziennik szkolny. Kreatywność ","086581",462,null,0]
[null,"Pewny start D Moja książka","086582",139,null,0]
[null,"Pewny start D Codziennik szkolny. Funkcjonowanie","086583",116,null,0]
["MATERIAŁY ĆWICZENIOWE","Pewny start D Codziennik szkolny. Komunikacja","086584",116,null,0]
[null,"Pewny start D Codziennik szkolny. Kreatywność","086585",116,null,0]
[null,"Pewny start D  Zestaw. Karty pracy. Jesień, zima, Wiosna, lato","086586",85,null,0]
[null,"Pewny start D Karty pracy.  Jesień, zima","086587",47,null,0]
[null,"Pewny start D Karty pracy.  Wiosna, lato","086588",47,null,0]
["MATERIAŁY EDUKACYJNE","Pewny start. E Zestaw Moja książka, Codziennik. Funkcjonowanie 1-2, Komunikacja, Kreatywność","086641",594,null,0]
[null,"Pewny start. E Moja książka","086642",154,null,0]
[null,"Pewny start. E Cdziennik. Funkcjonowanie ","086643",116,null,0]
[null,"Pewny start. E Codziennik. Funkcjonowanie ","086644",116,null,0]
[null,"Pewny start. E Codziennik. Komunikacja","086645",116,null,0]
[null,"Pewny start. E Codziennik. Kreatywność","086646",116,null,0]
["MATERIAŁY ĆWICZENIOWE","Pewny start. E Zestaw. Karty pracy. Jesień, zima, Wiosna, lato","086647",94,null,0]
[null,"Pewny start. E Karty pracy. Jesień, zima","086648",48,null,0]
[null,"Pewny start. E Karty pracy. Wiosna, lato","086649",48,null,0]
["MATERIAŁY EDUKACYJNE","Pewny start. Poziom F. Pakiet edukacyjny. Zestaw moja książka, Codziennik. Funkcjonowanie 1-2, Komunikacja, Kreatywność",86701,600,null,0]
[null,"Pewny start. Poziom F Moja książka",86702,160,null,0]
[null,"Pewny start. Poziom F Cdziennik. Funkcjonowanie 1",86703,116,null,0]
[null,"Pewny start. Poziom F Codziennik. Funkcjonowanie 2",86704,116,null,0]
[null,"Pewny start. Poziom F Codziennik. Komunikacja",86705,116,null,0]
[null,"Pewny start. Poziom F Codziennik. Kreatywność",86706,116,null,0]
["MATERIAŁY ĆWICZENIOWE","Pewny start. Poziom F. Pakiet ćwiczeniowy. Zestaw karty pracy: jesień, zima, wiosna, lato.",86707,94,null,0]
[null,"Pewny start. Poziom F Karty pracy. Jesień/zima",86708,50,null,0]
[null,"Pewny start. Poziom F Karty pracy. Wiosna/lato",86709,50,null,0]
["MATERIAŁY EDUKACYJNE","Pewny start G Zestaw Moja książka. Codziennik szkolny. Funkcjonowanie 1-3, Komunikacja 1-2, Kreatywność ","086601",792,null,0]
[null,"Pewny start G Moja książka","086602",136,null,0]
[null,"Pewny start G Codziennik szkolny. Funkcjonowanie 1","086603",116,null,0]
[null,"Pewny start G Codziennik szkolny. Funkcjonowanie 2","086604",116,null,0]
[null,"Pewny start G Codziennik szkolny. Funkcjonowanie 3","086605",116,null,0]
[null,"Pewny start G Codziennik szkolny. Komunikacja 1","086606",116,null,0]
[null,"Pewny start G Codziennik szkolny. Komunikacja 2","086607",116,null,0]
[null,"Pewny start G Codziennik szkolny. Kreatywność","086608",116,null,0]
["MATERIAŁY ĆWICZENIOWE","Pewny start G Zestaw. Karty pracy. Jesień, zima, Wiosna, lato","086609",85,null,0]
[null,"Pewny start G Karty pracy  Jesień, zima","086610",47,null,0]
[null,"Pewny start G Karty pracy  Wiosna, lato","086611",47,null,0]
["MATERIAŁY EDUKACYJNE","Pewny start H Zestaw Moja książka, Codziennik. Funkcjonowanie 1-3, Komunikacja1-2, Kreatywność","086661",835,null,0]
[null,"Pewny start H Moja książka","086662",157,null,0]
[null,"Pewny start H Codziennik funkcjonowanie 1","086663",116,null,0]
[null,"Pewny start H Codziennik funkcjonowanie 2","086664",116,null,0]
[null,"Pewny start H Codziennik funkcjonowanie 3","086665",116,null,0]
[null,"Pewny start H Codziennik komunikacja 1","086666",116,null,0]
[null,"Pewny start H Codziennik komunikacja 2","086667",116,null,0]
[null,"Pewny start H Codziennik kreatywność","086668",116,null,0]
["MATERIAŁY ĆWICZENIOWE","Pewny start H Zestaw. Karty pracy. Jesień, zima, Wiosna, lato","086669",94,null,0]
[null,"Pewny start H Karty pracy  jesień/zima","086670",48,null,0]
[null,"Pewny start H Karty pracy  wiosna/lato","086671",48,null,0]
["MATERIAŁY EDUKACYJNE / MATERIAŁY ĆWICZENIOWE","Akademia pomysłów. Zajęcia wyrównawcze Zestaw","085611",549,null,0]
[null,"Akademia pomysłów. Uczeń z  niepełnosprawnością intelektualną w stopniu lekkim Zestaw","085591",549,null,0]
[null,"Akademia pomysłów. Uczeń ze spektrum autyzmu 1-3 Zestaw","085551",549,null,0]
["MATERIAŁY EDUKACYJNE","Pewny start. Nowe cztery pory roku Karty matematyczne. Liczby","085938",57,null,0]
[null,"Pewny start. Nowe cztery pory roku Karty do nauki czytania i pisania. Litery i wyrazy","085937",73,null,0]
["MATERIAŁY ĆWICZENIOWE","Pewny start. Nowe cztery pory roku Karty zadaniowe. Umiem to zrobić","085936",53,null,0]
[null,"Pewny start. Nowe cztery pory roku Karty pracy. Jesień","085932",67,null,0]
[null,"Pewny start. Nowe cztery pory roku Karty pracy. Wiosna, lato","085934",67,null,0]
[null,"Pewny start. Nowe cztery pory roku Karty pracy. Zima","085933",67,null,0]
[null,"Funkcje psychofizyczne. Karty pracy. Grafomotoryka. Poziom 1","086531",73,null,{"$f":"E214*D214","v":0}]
[null,"Funkcje psychofizyczne. Karty pracy. Koncentracja uwagi. Poziom 1","086532",73,null,0]
[null,"Funkcje psychofizyczne. Karty pracy. Percepcja wzrokowa. Poziom 1","086533",73,null,0]
[null,"Funkcje psychofizyczne. Karty pracy. Percepcja słuchowa. Poziom 1","086534",73,null,0]
[null,"Funkcje psychofizyczne.Karty pracy. Orientacja przestrzenna. Poziom 1","086535",73,null,0]
[null,"Funkcje psychofizyczne. Karty pracy. Funkcjonowanie społeczne. Poziom 1","086536",73,null,0]
[null,"Funkcje psychofizyczne. Karty pracy. Wypowiedzi ustne i pisemne. Poziom1","086537",73,null,0]
["MATERIAŁY EDUKACYJNE","PWN Akademia pisania. Układanki obrazkowo-wyrazowe. Poznaję i utrwalam poprawną wpisownię wyrazów ó/u","049141",44,null,0]
[null,"PWN Akademia pisania. Układanki obrazkowo-wyrazowe. Poznaję i utrwalam poprawną wpisownię wyrazów rz/ż","049142",44,null,0]
["MATERIAŁ EDUKACYJNY","Pewny start. Zaśpiewajmy razem. Śpiewnik z symbolami PCS","049741",90,null,0]
["MATERIAŁ ĆWICZENIOWY","PWN Pewny start. Zaśpiewajmy razem. Zeszyt ćwiczeń Zeszyt plastyczno- grafomotoryczny do śpiewnika z symbolami PCS","049742",30,null,0]
["MATERIAŁY ĆWICZENIOWE","Funkcje psychofizyczne. Funkcjonowanie społeczne 2","086542",73,null,0]
[null,"Funkcje psychofizyczne. Koncentracja uwagi 2","086538",73,null,0]
[null,"Funkcje psychofizyczne.Orientacja przestrzenna 2","086541",73,null,0]
[null,"Funkcje psychofizyczne. Percepcja słuchowa 2","086540",73,null,0]
[null,"Funkcje psychofizyczne.Percepcja wzrokowa 2","086539",73,null,0]
[null,"Funkcje psychofizyczne.Wypowiedzi ustne i pisemne 2","086543",73,null,0]
["MATERIAŁ EDUKACYJNY","Pewny start. Mój dobry rok. Materiał edukacyjny. Lubię jesień, Lubię zimę, Lubię wiosnę, lubię lato","085831",100,null,0]
["MATERIAŁY ĆWICZENIOWE","Pewny start. Mój dobry rok. Karty pracy. Czytanie i pisanie","085832",64,null,0]
["MATERIAŁY EDUKACYJNE","Pewny start. Świat wokół mnie. Wycinanki. Emocje","086193",53,null,0]
[null,"Pewny start. Świat wokół mnie. Historyjki obrazkowe. Układam, opowiadam","086192",68,null,0]
[null,"Pewny start. Świat wokół mnie. Czytanki. Ola, Adam i ich świat","086195",53,null,0]
["MATERIAŁ EDUKACYJNY","Pewny start. Wokół pór roku. Czytanki. Rozmowy Oli i Adama","086265",53,null,0]
["MATERIAŁY ĆWICZENIOWE","Pewny start. Wokół pór roku. Karty pracy. Wokół jesieni","086262",47,null,0]
[null,"Pewny start. Wokół pór roku. Karty pracy. Wokół wiosny, wokół lata","086264",47,null,0]
[null,"Pewny start. Wokół pór roku. Karty pracy. Wokół zimy","086263",47,null,0]
["MATERIAŁY ĆWICZENIOWE","Pewny start. Moja matematyka. Zestaw Kart pracy Jesień, Zima, Wiosna,lato. Poziom A","086481",187,null,0]
[null,"Pewny start. Moja matematyka. Karty pracy. Jesień. Poziom A","086482",67,null,0]
[null,"Pewny start. Moja matematyka. Karty pracy. Zima. Poziom A","086483",67,null,0]
[null,"Pewny start. Moja matematyka. Karty pracy. Wiosna, lato. Poziom A","086484",67,null,0]
[null,"Pewny start. Moja matematyka. Zestaw Kart pracy. Jesień, Zima, Wiosna,lato. Poziom B","086485",187,null,0]
[null,"Pewny start. Moja matematyka. Karty pracy. Jesień. Poziom B","086486",67,null,0]
[null,"Pewny start. Moja matematyka. Karty pracy. Zima. Poziom B","086487",67,null,0]
[null,"Pewny start. Moja matematyka. Karty pracy. Wiosna, lato. Poziom B","086488",67,null,0]
["MATERIAŁY ĆWICZENIOWE","Pewny start. Moja codzienność. Karty pracy. Jesień","085811",52,null,0]
[null,"Pewny start. Moja codzienność. Karty pracy. Wiosna, lato","085813",52,null,0]
[null,"Pewny start. Moja codzienność. Karty pracy. Zima","085812",52,null,0]
["MATERIAŁY EDUKACYJNE / MATERIAŁY ĆWICZENIOWE","Akademia pomysłów. Uczeń ze spektrum autyzmu 4-8 Zestaw","085571",549,null,0]
["MATERIAŁ EDUKACYJNY","Pewny start. Odkrywam świat. Materiał edukacyjny. Moja książka. Poziom A","086112",117,null,0]
["MATERIAŁY ĆWICZENIOWE","Pewny start. Odkrywam świat. Moje ćwiczenia. Poziom A","086111",64,null,0]
[null,"Pewny start. Odkrywam świat. Moje ćwiczenia. Poziom B","086113",64,null,0]
["MATERIAŁ ĆWICZENIOWY","Pewny start. Poznać i zrozumieć uczucia. Karty pracy. Nasz wewnętrzny świat","086142",47,null,0]
["MATERIAŁY EDUKACYJNY","Pewny start. Poznać i zrozumieć uczucia. Poradnik pozytywny. Jak sobie radzić z uczuciami","086147",76,null,0]
[null,"Pewny start. Poznać i zrozumieć uczucia. Historyjki społeczne. Uczucia w nas i w relacjach ze światem","086146",68,null,0]
[null,"Pewny start. Poznać i zrozumieć uczucia. Historyjki obrazkowe. Co by było, gdyby","086148",100,null,0]
["MATERIAŁY ĆWICZENIOWE","Funkcje psychofizyczne. Karty pracy. Koncentracja uwagi. Poziom 3","086544",73,null,0]
[null,"Funkcje psychofizyczne. Karty pracy. Percepcja wzrokowa. Poziom 3","086545",73,null,0]
[null,"Funkcje psychofizyczne. Karty pracy. Percepcja słuchowa. Poziom 3","086546",73,null,0]
[null,"Funkcje psychofizyczne. Karty pracy. Orientacja przestrzenna. Poziom 3","086547",73,null,0]
[null,"Funkcje psychofizyczne. Karty pracy. Funkcjonowanie społeczne. Poziom 3","086548",73,null,0]
[null,"Funkcje psychofizyczne. Karty pracy. Wypowiedzi ustne i pisemne. Poziom 3","086549",73,null,0]
["MATERIAŁY EDUKACYJNE / MATERIAŁY ĆWICZENIOWE","PEWNY START. O DOJRZEWANIU. CHŁOPCY Blog Tomka. Czytanki","085961",55,null,0]
[null,"PEWNY START. O DOJRZEWANIU. CHŁOPCY Co to jest dojrzewanie? Historyjki społeczne","085962",55,null,0]
[null,"PEWNY START. O DOJRZEWANIU. CHŁOPCY Co warto wiedzieć o sobie? Karty pracy","085963",73,null,0]
[null,"PEWNY START. O DOJRZEWANIU. CHŁOPCY Dbam o siebie. Instrukcje","085964",55,null,0]
[null,"PEWNY START. O DOJRZEWANIU. CHŁOPCY Poradnik Metodyczny","085965",36,null,0]
[null,"PEWNY START. O DOJRZEWANIU. CHŁOPCY Zestaw","085966",225,null,0]
[null,"PEWNY START. O DOJRZEWANIU. DZIEWCZĘTA Co to jest dojrzewanie? Historyjki społeczne","086012",55,null,0]
[null,"PEWNY START. O DOJRZEWANIU. DZIEWCZĘTA Co warto wiedzieć o sobie? Karty pracy","086013",73,null,0]
[null,"PEWNY START. O DOJRZEWANIU. DZIEWCZĘTA Dbam o siebie. Instrukcje","086014",55,null,0]
[null,"PEWNY START. O DOJRZEWANIU. DZIEWCZĘTA Pamiętnik Zuzy. Czytanki","086011",55,null,0]
[null,"PEWNY START. O DOJRZEWANIU. DZIEWCZĘTA Poradnik Metodyczny","086015",36,null,0]
[null,"PEWNY START. O DOJRZEWANIU. DZIEWCZĘTA Zestaw","086016",225,null,0]
["MATERIAŁ EDUKACYJNY","PWN Pewny start. Aktywni zawodowo. Materiał edukacyjny. ABC rękodzieła","049157",70,null,0]
[null,"PWN Pewny start. Aktywni zawodowo. Materiał edukacyjny. Pracuję w biurze","049164",70,null,{"$f":"E278*D278","v":0}]
[null,"PWN Pewny start. Aktywni zawodowo. Materiał edukacyjny. Podaję do stołu","049169",70,null,0]
[null,"PWN Pewny start. Aktywni zawodowo. Materiał edukacyjny. ABC pracy w kuchni","049167",70,null,0]
[null,"PWN Pewny start. Aktywni zawodowo. Materiał edukacyjny. Obsługa AGD  w kuchni","049168",70,null,0]
[null,"Pewny start. Aktywni zawodowo. Prace porządkowe. Czynności porządkowe. Materiał edukacyjny","085713",70,null,0]
["MATERIAŁY ĆWICZENIOWE","Pewny start. Aktywni zawodowo. Karty pracy 1. Rękodzieło","085705",61,null,0]
[null,"Pewny start. Aktywni zawodowo. Karty pracy 2. Rękodzieło","085706",61,null,0]
[null,"Pewny start. Aktywni zawodowo. Karty pracy 1. Prace biurowe","085703",61,null,0]
[null,"Pewny start. Aktywni zawodowo. Karty pracy 2. Prace biurowe",85704,61,null,0]
[null,"Pewny start. Aktywni zawodowo. Karty pracy 1. Zajęcia kulinarne","085707",61,null,0]
[null,"Pewny start. Aktywni zawodowo. Karty pracy 2. Zajęcia kulinarne",85708,61,null,0]
[null,"Pewny start. Aktywni zawodowo. Karty pracy 3. Zajęcia kulinarne","049172",61,null,0]
[null,"Pewny start. Aktywni zawodowo. Karty pracy 1. Ogrodnictwo","085701",61,null,0]
[null,"Pewny start. Aktywni zawodowo. Karty pracy 2. Ogrodnictwo","085702",61,null,0]
[null,"Pewny start. Aktywni zawodowo. Prace porządkowe. Karty pracy 1","085710",48,null,0]
[null,"Pewny start. Aktywni zawodowo. Prace porządkowe. Karty pracy 2","085711",48,null,0]
[null,"Pewny start. Aktywni zawodowo. Prace porządkowe. Karty pracy 3","085712",48,null,0]

{"sheet":"Krok 3","index":2,"n_rows":247,"n_cols":8,"rows_kept":247,"cut":false,"hidden":false,"merged":[[8,0,8,7],[10,7,11,7],[10,5,11,5],[10,4,11,4],[10,0,11,0],[246,3,246,4],[246,5,246,7],[60,0,60,5],[40,5,41,5],[40,7,41,7],[42,5,43,5],[42,7,43,7],[44,5,47,5],[44,7,47,7],[48,7,51,7],[55,5,57,5],[55,7,57,7],[55,0,57,0],[55,4,57,4],[52,5,54,5],[52,7,54,7],[48,5,51,5],[32,4,33,4],[12,7,13,7],[12,5,13,5],[12,0,13,0],[12,4,13,4],[48,4,51,4],[30,0,31,0],[40,0,41,0],[40,4,41,4],[30,4,31,4],[32,0,33,0],[19,7,21,7],[17,7,18,7],[22,5,25,5],[22,7,25,7],[26,5,29,5],[26,7,29,7],[30,5,31,5],[30,7,31,7],[32,5,33,5],[32,7,33,7],[26,0,29,0],[26,4,29,4],[52,0,54,0],[52,4,54,4],[202,0,203,0],[42,0,43,0],[42,4,43,4],[44,0,47,0],[44,4,47,4],[48,0,51,0],[17,5,18,5],[19,5,21,5],[19,0,21,0],[19,4,21,4],[22,0,25,0],[22,4,25,4],[17,0,18,0],[17,4,18,4]]}
[]
[null,"Oferta Dotacja Celowa SPE …………………….."]
[]
["Imię i nazwisko",{"$f":"'Krok 1'!E4","v":0}]
["Adres szkoły",{"$f":"'Krok 1'!E6","v":0}]
["Dane kontaktowe",{"$f":"'Krok 1'!E8","v":0}]
["Dodatkowe informacje/notatki",{"$f":"'Krok 1'!E10","v":0}]
[]
["PAKIETY"]
["Pakiet","Tytuł","KH","Cena  pojedynczego egz.","Cena w pakiecie","Ilość egz.",null,"Wartość"]
["Zestaw 1","Funkcje psychofizyczne. Karty pracy. Grafomotoryka. Poziom 1","086531",73,98.01,{"$f":"'Krok 2'!F8","v":0},{"$f":"F11","v":0},{"$f":"F11*E11","v":0}]
[null,"Pewny start. A. Zestaw. Karty pracy. Jesień, zima, Wiosna, lato","086567",94,null,null,{"$f":"F11","v":0}]
["Zestaw 2","Pewny start. A. Karty pracy. Czytanie, pisanie","086565",55,98.01,{"$f":"'Krok 2'!F11","v":0},{"$f":"F13","v":0},{"$f":"F13*E13","v":0}]
[null,"Pewny start. A. Karty pracy. Plastyka, grafomotoryka","086566",55,null,null,{"$f":"F13","v":0}]
["Zestaw 3","Pewny start D Zestaw. Karty pracy. Jesień, zima, Wiosna, lato","086586",85,49.01,{"$f":"'Krok 2'!F17","v":0},{"$f":"F15","v":0},{"$f":"F15*E15","v":0}]
["Zestaw 4","PEWNY START. H Zestaw. Karty pracy. Jesień, zima, Wiosna, lato","086669",94,49.01,{"$f":"'Krok 2'!F19","v":0},{"$f":"F16","v":0},{"$f":"F16*E16","v":0}]
["Zestaw 5","Pewny start. A. Zestaw. Moja książka, Codziennik szkolny Funkcjonowanie, komunikacja, kreatywność","086561",231,212.06,{"$f":"'Krok 2'!F23","v":0},{"$f":"F17","v":0},{"$f":"F17*E17","v":0}]
["Zestaw 6","Pewny start D Moja książka","086582",139,241.76,{"$f":"'Krok 2'!F27","v":0},{"$f":"F18","v":0},{"$f":"E18*F18","v":0}]
[null,"Pewny start D Codziennik szkolny. Funkcjonowanie","086583",116,null,null,{"$f":"F18","v":0}]
["Zestaw 7","Pewny start D Codziennik szkolny. Funkcjonowanie","086583",116,241.76,{"$f":"'Krok 2'!F30","v":0},{"$f":"F20","v":0},{"$f":"F20*E20","v":0}]
[null,"Pewny start D Codziennik szkolny. Komunikacja","086584",116,null,null,{"$f":"F20","v":0}]
[null,"Pewny start D Codziennik szkolny. Kreatywność","086585",116,null,null,{"$f":"F20","v":0}]
["Zestaw 8","Pewny start G Codziennik szkolny. Kreatywność","086608",116,431.24,{"$f":"'Krok 2'!F36","v":0},{"$f":"F23","v":0},{"$f":"F23*E23","v":0}]
[null,"Pewny start G Codziennik szkolny. Funkcjonowanie 1","086603",116,null,null,{"$f":"F23","v":0}]
[null,"Pewny start G Codziennik szkolny. Funkcjonowanie 2","086604",116,null,null,{"$f":"F23","v":0}]
[null,"Pewny start G Codziennik szkolny. Funkcjonowanie 3","086605",116,null,null,{"$f":"F23","v":0}]
["Zestaw 9","Pewny start G Moja książka","086602",136,431.24,{"$f":"'Krok 2'!F41","v":0},{"$f":"F27","v":0},{"$f":"F27*E27","v":0}]
[null,"Pewny start G Codziennik szkolny. Komunikacja 1","086606",116,null,null,{"$f":"F27","v":0}]
[null,"Pewny start G Codziennik szkolny. Komunikacja 2","086607",116,null,null,{"$f":"F27","v":0}]
[null,"Pewny start G Codziennik szkolny. Kreatywność","086608",116,null,null,{"$f":"F27","v":0}]
["Zestaw 10","Funkcje psychofizyczne. Karty pracy. Grafomotoryka. Poziom 1","086531",73,105.54,{"$f":"'Krok 2'!F49","v":0},{"$f":"F31","v":0},{"$f":"F31*E31","v":0}]
[null,"Pewny start. A. Karty pracy. Czytanie, pisanie","086565",55,null,null,{"$f":"F31","v":0}]
["Zestaw 11","Funkcje psychofizyczne. Karty pracy. Percepcja wzrokowa. Poziom 1","086533",73,105.54,{"$f":"'Krok 2'!F52","v":0},{"$f":"F33","v":0},{"$f":"F33*E33","v":0}]
[null,"Pewny start. A. Karty pracy. Plastyka, grafomotoryka","086566",55,null,null,{"$f":"F33","v":0}]
["Zestaw 12","Funkcje psychofizyczne. Karty pracy. Koncentracja uwagi. Poziom 1","086532",73,52.27,{"$f":"'Krok 2'!F58","v":0},{"$f":"F35","v":0},{"$f":"F35*E35","v":0}]
["Zestaw 13","Funkcje psychofizyczne. Karty pracy. Percepcja słuchowa. Poziom 1","086534",73,52.27,{"$f":"'Krok 2'!F60","v":0},0,0]
["Zestaw 14","Funkcje psychofizyczne.Karty pracy. Orientacja przestrzenna. Poziom 1","086535",73,52.27,{"$f":"'Krok 2'!F62","v":0},0,0]
["Zestaw 15","Funkcje psychofizyczne. Karty pracy. Funkcjonowanie społeczne. Poziom 1","086536",73,52.27,{"$f":"'Krok 2'!F64","v":0},0,0]
["Zestaw 16","Funkcje psychofizyczne. Karty pracy. Wypowiedzi ustne i pisemne. Poziom1","086537",73,52.27,{"$f":"'Krok 2'!F66","v":0},0,0]
["Zestaw 17","Pewny start. A. Zestaw. Moja książka, Codziennik szkolny Funkcjonowanie, komunikacja, kreatywność","086561",231,212.06,{"$f":"'Krok 2'!F71","v":0},0,0]
["Zestaw 18","Pewny start D Moja książka","086582",139,241.76,{"$f":"'Krok 2'!F76","v":0},0,0]
[null,"Pewny start D Codziennik szkolny. Funkcjonowanie","086583",116,null,null,{"$f":"F41","v":0}]
["Zestaw 19","Pewny start D Codziennik szkolny. Komunikacja","086584",116,241.76,{"$f":"'Krok 2'!F79","v":0},{"$f":"F43","v":0},{"$f":"F43*E43","v":0}]
[null,"Pewny start D Moja książka","086582",139,null,null,{"$f":"F43","v":0}]
["Zestaw 20","Pewny start H Moja książka","086662",157,431.24,{"$f":"'Krok 2'!F84","v":0},{"$f":"F45","v":0},{"$f":"F45*E45","v":0}]
[null,"Pewny start G Codziennik szkolny. Funkcjonowanie 1","086603",116,null,null,{"$f":"F45","v":0}]
[null,"Pewny start G Codziennik szkolny. Funkcjonowanie 2","086604",116,null,null,{"$f":"F45","v":0}]
[null,"Pewny start G Codziennik szkolny. Funkcjonowanie 3","086605",116,null,null,{"$f":"F45","v":0}]
["Zestaw 21","Pewny start G Moja książka","086602",136,431.24,{"$f":"'Krok 2'!F89","v":0},{"$f":"F49","v":0},{"$f":"F49*E49","v":0}]
[null,"Pewny start G Codziennik szkolny. Komunikacja 1","086606",116,null,null,{"$f":"F49","v":0}]
[null,"Pewny start G Codziennik szkolny. Komunikacja 2","086607",116,null,null,{"$f":"F49","v":0}]
[null,"Pewny start G Codziennik szkolny. Kreatywność","086608",116,null,null,{"$f":"F49","v":0}]
["Zestaw 22","Łatwiejszy PEWNY START. POZIOM A. CZYTANIE I PISANIE. Karty pracy","086730",50,117.61,{"$f":"'Krok 2'!F97","v":0},{"$f":"F53","v":0},{"$f":"F53*E53","v":0}]
[null,"Łatwiejszy PEWNY START. POZIOM A. JESIEŃ, ZIMA. karty pracy","086729",50,null,null,{"$f":"F53","v":0}]
[null,"Łatwiejszy PEWNY START. POZIOM A. MATEMATYKA. karty pracy","086731",50,null,null,{"$f":"F53","v":0}]
["Zestaw 23","Łatwiejszy PEWNY START. POZIOM A. CZYTANIE I PISANIE. Karty pracy","086730",50,117.61,{"$f":"'Krok 2'!F101","v":0},{"$f":"F56","v":0},{"$f":"F56*E56","v":0}]
[null,"Łatwiejszy PEWNY START. POZIOM A. JESIEŃ, ZIMA. karty pracy","086729",50,null,null,{"$f":"F56","v":0}]
[null,"Łatwiejszy PEWNY START. POZIOM A. WIOSNA, LATO. karty pracy","086728",50,null,null,{"$f":"F56","v":0}]
["Zestaw 24","Łatwiejszy Pewny start. POZIOM A. ZESTAW materiały edukacyjne","086721",240,117.81,{"$f":"'Krok 2'!F108","v":0},{"$f":"F59","v":0},{"$f":"F59*E59","v":0}]
[]
["PEŁNA LISTA PUBLIKACJI "]
["Rodzaj","Tytuł","KH","Cena  pojedynczego egz.","Ilość egz.","Wartość"]
["MATERIAŁY EDUKACYJNE","Łatwiejszy Pewny start. POZIOM A. POROZUMIEWANIE SIĘ. materiał edukacyjny","086722",83,{"$f":"'Krok 2'!E113","v":0},{"$f":"E63*D63","v":0}]
["MATERIAŁY EDUKACYJNE","Łatwiejszy Pewny start. POZIOM A. EDUKACJA OSOBISTA I ZDROWOTNA materiał edukacyjny","086725",83,{"$f":"'Krok 2'!E114","v":0},{"$f":"E64*D64","v":0}]
["MATERIAŁY EDUKACYJNE","Łatwiejszy Pewny start. POZIOM A. EDUKACJA ŚRODOWISKOWA I SPOŁECZNA. materiał edukacyjny","086723",83,{"$f":"'Krok 2'!E115","v":0},0]
["MATERIAŁY EDUKACYJNE","Łatwiejszy Pewny start. POZIOM A. ZESTAW materiały edukacyjne","086721",240,{"$f":"'Krok 2'!E116","v":0},0]
["MATERIAŁY ĆWICZENIOWE","Łatwiejszy Pewny start. POZIOM A. CZYTANIE I PISANIE. Karty pracy","086730",50,{"$f":"'Krok 2'!E117","v":0},0]
["MATERIAŁY ĆWICZENIOWE","Łatwiejszy Pewny start. POZIOM A. JESIEŃ, ZIMA. karty pracy","086729",50,{"$f":"'Krok 2'!E118","v":0},0]
["MATERIAŁY ĆWICZENIOWE","Łatwiejszy Pewny start. POZIOM A. WIOSNA, LATO. karty pracy","086728",50,{"$f":"'Krok 2'!E119","v":0},0]
["MATERIAŁY ĆWICZENIOWE","Łatwiejszy Pewny start. POZIOM A. MATEMATYKA. karty pracy","086731",50,{"$f":"'Krok 2'!E120","v":0},0]
["MATERIAŁY ĆWICZENIOWE","Łatwiejszy Pewny start. POZIOM A. ZESTAW karty pracy","086727",185,{"$f":"'Krok 2'!E121","v":0},0]
["MATERIAŁY EDUKACYJNE","Łatwiejszy Pewny start. POZIOM D. POROZUMIEWANIE SIĘ. materiał edukacyjny","086742",121,{"$f":"'Krok 2'!E122","v":0},0]
["MATERIAŁY EDUKACYJNE","Łatwiejszy Pewny start. POZIOM D. EDUKACJA ŚRODOWISKOWA. materiał edukacyjny","086743",121,{"$f":"'Krok 2'!E123","v":0},0]
["MATERIAŁY EDUKACYJNE","Łatwiejszy Pewny start. POZIOM D. EDUKACJA SPOŁECZNA. materiał edukacyjny","086744",121,{"$f":"'Krok 2'!E124","v":0},0]
["MATERIAŁY EDUKACYJNE","Łatwiejszy Pewny start. POZIOM D. EDUKACJA OSOBISTA I  ZDROWOTNA. materiał edukacyjny","086745",121,{"$f":"'Krok 2'!E125","v":0},0]
["MATERIAŁY EDUKACYJNE","Łatwiejszy Pewny start. POZIOM D. ZESTAW materiały edukacyjne","086741",450,{"$f":"'Krok 2'!E126","v":0},0]
["MATERIAŁY ĆWICZENIOWE","Łatwiejszy Pewny start. POZIOM D. JESIEŃ, ZIMA. karty pracy","086749",50,{"$f":"'Krok 2'!E127","v":0},0]
["MATERIAŁY ĆWICZENIOWE","Łatwiejszy Pewny start. POZIOM D. WIOSNA, LATO. karty pracy","086748",50,{"$f":"'Krok 2'!E128","v":0},0]
["MATERIAŁY ĆWICZENIOWE","Łatwiejszy Pewny start. POZIOM D. ZESTAW karty pracy","086747",94,{"$f":"'Krok 2'!E129","v":0},0]
["MATERIAŁY EDUKACYJNE","Pewny start. A. Zestaw. Moja książka, Codziennik szkolny Funkcjonowanie, komunikacja, kreatywność","086561",231,{"$f":"'Krok 2'!E130","v":0},0]
["MATERIAŁY EDUKACYJNE","Pewny start A Moja książka","086562",132,{"$f":"'Krok 2'!E131","v":0},0]
["MATERIAŁY EDUKACYJNE","Pewny start A Codziennik szkolny Funkcjonowanie, komunikacja, kreatywność","086563",116,{"$f":"'Krok 2'!E132","v":0},0]
["MATERIAŁY ĆWICZENIOWE","Pewny start. A. Zestaw. Karty pracy. Jesień, zima, Wiosna, lato","086567",94,{"$f":"'Krok 2'!E133","v":0},0]
["MATERIAŁY ĆWICZENIOWE","Pewny start. A. Zestaw. Karty pracy. Czytanie, pisanie, Plastyka, grafomotoryka","086564",94,{"$f":"'Krok 2'!E134","v":0},0]
["MATERIAŁY ĆWICZENIOWE","Pewny start A Karty pracy Jesień, zima","086568",55,{"$f":"'Krok 2'!E135","v":0},0]
["MATERIAŁY ĆWICZENIOWE","Pewny start. A Karty pracy Wiosna, lato","086569",55,{"$f":"'Krok 2'!E136","v":0},0]
["MATERIAŁY ĆWICZENIOWE","Pewny start A Karty pracy Pisanie, czytanie","086565",55,{"$f":"'Krok 2'!E137","v":0},0]
["MATERIAŁY ĆWICZENIOWE","Pewny start. A. Karty pracy Plastyka, grafomotoryka","086566",55,{"$f":"'Krok 2'!E138","v":0},0]
["MATERIAŁY EDUKACYJNE","Pewny start. B Zestaw Moja książka. Codziennik. Funkcjonowanie, komunikacja, kreatywność","086621",231,{"$f":"'Krok 2'!E139","v":0},0]
["MATERIAŁY EDUKACYJNE","Pewny start. B Moja książka","086622",132,{"$f":"'Krok 2'!E140","v":0},0]
["MATERIAŁY EDUKACYJNE","Pewny start. B Codziennik szkolny. Funkcjonowanie, komunikacja, kreatywność","086623",116,{"$f":"'Krok 2'!E141","v":0},0]
["MATERIAŁY ĆWICZENIOWE","Pewny start. B Zestaw Karty pracy. Czytanie, pisanie. Plastyka, grafomotoryka","086624",94,{"$f":"'Krok 2'!E142","v":0},0]
["MATERIAŁY ĆWICZENIOWE","Pewny start. B Zestaw Zestaw. Karty pracy. Jesień, zima, Wiosna, lato","086627",94,{"$f":"'Krok 2'!E143","v":0},0]
["MATERIAŁY ĆWICZENIOWE","Pewny start. B Karty pracy Jesień, zima","086628",55,{"$f":"'Krok 2'!E144","v":0},0]
["MATERIAŁY ĆWICZENIOWE","Pewny start. B Karty pracy  Wiosna, lato","086629",55,{"$f":"'Krok 2'!E145","v":0},0]
["MATERIAŁY ĆWICZENIOWE","Pewny start. B Karty pracy Pisanie, czytanie","086625",55,{"$f":"'Krok 2'!E146","v":0},0]
["MATERIAŁY ĆWICZENIOWE","Pewny start. B Karty pracy Plastyka, grafomotoryka","086626",55,{"$f":"'Krok 2'!E147","v":0},0]
["MATERIAŁY EDUKACYJNE","Pewny start. C Pakiet edukacyjny zestaw moja książka. Codziennik. Funkcjonowanie,komunikacja,kreatywność","086681",231,{"$f":"'Krok 2'!E148","v":0},0]
["MATERIAŁY EDUKACYJNE","Pewny start C Moja książka","086682",132,{"$f":"'Krok 2'!E149","v":0},0]
["MATERIAŁY EDUKACYJNE","Pewny start C Codziennik fun/kom/kre","086683",116,{"$f":"'Krok 2'!E150","v":0},0]
["MATERIAŁY ĆWICZENIOWE","Pewny start. C Pakiet ćwiczeniowy 1 Czytanie, pisanie. Matematyka","086684",94,{"$f":"'Krok 2'!E151","v":0},0]
["MATERIAŁY ĆWICZENIOWE","Pewny start. C Pakiet ćwiczeniowy 2-Jesień, zima, wiosna, lato","086687",94,{"$f":"'Krok 2'!E152","v":0},0]
["MATERIAŁY ĆWICZENIOWE","Pewny start C Karty pracy  jesień/zima","086688",55,{"$f":"'Krok 2'!E153","v":0},0]
["MATERIAŁY ĆWICZENIOWE","Pewny start. C Karty pracy 2 wiosna/lato","086689",55,{"$f":"'Krok 2'!E154","v":0},0]
["MATERIAŁY ĆWICZENIOWE","Pewny start. C Karty pracy pisanie/czytanie","086685",55,{"$f":"'Krok 2'!E155","v":0},0]
["MATERIAŁY ĆWICZENIOWE","Pewny start. C Karty pracy plastyka/grafomotoryka","866860",55,{"$f":"'Krok 2'!E156","v":0},0]
["MATERIAŁY EDUKACYJNE","Pewny start D Zestaw Moja książka, Codziennik szkolny. Funkcjonowanie, Codziennik szkolny. Komunikacja, Codziennik szkolny. Kreatywność ","086581",462,{"$f":"'Krok 2'!E157","v":0},0]
["MATERIAŁY EDUKACYJNE","Pewny start D Moja książka","086582",139,{"$f":"'Krok 2'!E158","v":0},0]
["MATERIAŁY EDUKACYJNE","Pewny start D Codziennik szkolny. Funkcjonowanie","086583",116,{"$f":"'Krok 2'!E159","v":0},0]
["MATERIAŁY ĆWICZENIOWE","Pewny start D Codziennik szkolny. Komunikacja","086584",116,{"$f":"'Krok 2'!E160","v":0},0]
["MATERIAŁY ĆWICZENIOWE","Pewny start D Codziennik szkolny. Kreatywność","086585",116,{"$f":"'Krok 2'!E161","v":0},0]
["MATERIAŁY ĆWICZENIOWE","Pewny start D  Zestaw. Karty pracy. Jesień, zima, Wiosna, lato","086586",85,{"$f":"'Krok 2'!E162","v":0},0]
["MATERIAŁY ĆWICZENIOWE","Pewny start D Karty pracy.  Jesień, zima","086587",47,{"$f":"'Krok 2'!E163","v":0},0]
["MATERIAŁY ĆWICZENIOWE","Pewny start D Karty pracy.  Wiosna, lato","086588",47,{"$f":"'Krok 2'!E164","v":0},0]
["MATERIAŁY EDUKACYJNE","Pewny start. E Zestaw Moja książka, Codziennik. Funkcjonowanie 1-2, Komunikacja, Kreatywność","086641",594,{"$f":"'Krok 2'!E165","v":0},0]
["MATERIAŁY EDUKACYJNE","Pewny start. E Moja książka","086642",154,{"$f":"'Krok 2'!E166","v":0},0]
["MATERIAŁY EDUKACYJNE","Pewny start. E Cdziennik. Funkcjonowanie ","086643",116,{"$f":"'Krok 2'!E167","v":0},0]
["MATERIAŁY EDUKACYJNE","Pewny start. E Codziennik. Funkcjonowanie ","086644",116,{"$f":"'Krok 2'!E168","v":0},0]
["MATERIAŁY EDUKACYJNE","Pewny start. E Codziennik. Komunikacja","086645",116,{"$f":"'Krok 2'!E169","v":0},0]
["MATERIAŁY EDUKACYJNE","Pewny start. E Codziennik. Kreatywność","086646",116,{"$f":"'Krok 2'!E170","v":0},0]
["MATERIAŁY ĆWICZENIOWE","Pewny start. E Zestaw. Karty pracy. Jesień, zima, Wiosna, lato","086647",94,{"$f":"'Krok 2'!E171","v":0},0]
["MATERIAŁY ĆWICZENIOWE","Pewny start. E Karty pracy. Jesień, zima","086648",48,{"$f":"'Krok 2'!E172","v":0},0]
["MATERIAŁY ĆWICZENIOWE","Pewny start. E Karty pracy. Wiosna, lato","086649",48,{"$f":"'Krok 2'!E173","v":0},0]
["MATERIAŁY EDUKACYJNE","Pewny start. Poziom F. Pakiet edukacyjny. Zestaw moja książka, Codziennik. Funkcjonowanie 1-2, Komunikacja, Kreatywność","086701",600,{"$f":"'Krok 2'!E174","v":0},0]
["MATERIAŁY EDUKACYJNE","Pewny start. Poziom F Moja książka","086702",160,{"$f":"'Krok 2'!E175","v":0},0]
["MATERIAŁY EDUKACYJNE","Pewny start. Poziom F Cdziennik. Funkcjonowanie 1","086703",116,{"$f":"'Krok 2'!E176","v":0},0]
["MATERIAŁY EDUKACYJNE","Pewny start. Poziom F Codziennik. Funkcjonowanie 2","086704",116,{"$f":"'Krok 2'!E177","v":0},0]
["MATERIAŁY EDUKACYJNE","Pewny start. Poziom F Codziennik. Komunikacja","086705",116,{"$f":"'Krok 2'!E178","v":0},{"$f":"E128*D128","v":0}]
["MATERIAŁY EDUKACYJNE","Pewny start. Poziom F Codziennik. Kreatywność","086706",116,{"$f":"'Krok 2'!E179","v":0},0]
["MATERIAŁY ĆWICZENIOWE","Pewny start. Poziom F. Pakiet ćwiczeniowy. Zestaw karty pracy: jesień, zima, wiosna, lato.","086707",94,{"$f":"'Krok 2'!E180","v":0},0]
["MATERIAŁY ĆWICZENIOWE","Pewny start. Poziom F Karty pracy. Jesień/zima","086708",50,{"$f":"'Krok 2'!E181","v":0},0]
["MATERIAŁY ĆWICZENIOWE","Pewny start. Poziom F Karty pracy. Wiosna/lato","086709",50,{"$f":"'Krok 2'!E182","v":0},0]
["MATERIAŁY EDUKACYJNE","Pewny start G Zestaw Moja książka. Codziennik szkolny. Funkcjonowanie 1-3, Komunikacja 1-2, Kreatywność ","086601",792,{"$f":"'Krok 2'!E183","v":0},0]
["MATERIAŁY EDUKACYJNE","Pewny start G Moja książka","086602",136,{"$f":"'Krok 2'!E184","v":0},0]
["MATERIAŁY EDUKACYJNE","Pewny start G Codziennik szkolny. Funkcjonowanie 1","086603",116,{"$f":"'Krok 2'!E185","v":0},0]
["MATERIAŁY EDUKACYJNE","Pewny start G Codziennik szkolny. Funkcjonowanie 2","086604",116,{"$f":"'Krok 2'!E186","v":0},0]
["MATERIAŁY EDUKACYJNE","Pewny start G Codziennik szkolny. Funkcjonowanie 3","086605",116,{"$f":"'Krok 2'!E187","v":0},0]
["MATERIAŁY EDUKACYJNE","Pewny start G Codziennik szkolny. Komunikacja 1","086606",116,{"$f":"'Krok 2'!E188","v":0},0]
["MATERIAŁY EDUKACYJNE","Pewny start G Codziennik szkolny. Komunikacja 2","086607",116,{"$f":"'Krok 2'!E189","v":0},0]
["MATERIAŁY EDUKACYJNE","Pewny start G Codziennik szkolny. Kreatywność","086608",116,{"$f":"'Krok 2'!E190","v":0},0]
["MATERIAŁY ĆWICZENIOWE","Pewny start G Zestaw. Karty pracy. Jesień, zima, Wiosna, lato","086609",85,{"$f":"'Krok 2'!E191","v":0},0]
["MATERIAŁY ĆWICZENIOWE","Pewny start G Karty pracy  Jesień, zima","086610",47,{"$f":"'Krok 2'!E192","v":0},0]
["MATERIAŁY ĆWICZENIOWE","Pewny start G Karty pracy  Wiosna, lato","086611",47,{"$f":"'Krok 2'!E193","v":0},0]
["MATERIAŁY EDUKACYJNE","Pewny start H Zestaw Moja książka, Codziennik. Funkcjonowanie 1-3, Komunikacja1-2, Kreatywność","086661",835,{"$f":"'Krok 2'!E194","v":0},0]
["MATERIAŁY EDUKACYJNE","Pewny start H Moja książka","086662",157,{"$f":"'Krok 2'!E195","v":0},0]
["MATERIAŁY EDUKACYJNE","Pewny start H Codziennik funkcjonowanie 1","086663",116,{"$f":"'Krok 2'!E196","v":0},0]
["MATERIAŁY EDUKACYJNE","Pewny start H Codziennik funkcjonowanie 2","086664",116,{"$f":"'Krok 2'!E197","v":0},0]
["MATERIAŁY EDUKACYJNE","Pewny start H Codziennik funkcjonowanie 3","086665",116,{"$f":"'Krok 2'!E198","v":0},0]
["MATERIAŁY EDUKACYJNE","Pewny start H Codziennik komunikacja 1","086666",116,{"$f":"'Krok 2'!E199","v":0},0]
["MATERIAŁY EDUKACYJNE","Pewny start H Codziennik komunikacja 2","086667",116,{"$f":"'Krok 2'!E200","v":0},0]
["MATERIAŁY EDUKACYJNE","Pewny start H Codziennik kreatywność","086668",116,{"$f":"'Krok 2'!E201","v":0},0]
["MATERIAŁY ĆWICZENIOWE","Pewny start H Zestaw. Karty pracy. Jesień, zima, Wiosna, lato","086669",94,{"$f":"'Krok 2'!E202","v":0},0]
["MATERIAŁY ĆWICZENIOWE","Pewny start H Karty pracy  jesień/zima","086670",48,{"$f":"'Krok 2'!E203","v":0},0]
["MATERIAŁY ĆWICZENIOWE","Pewny start H Karty pracy  wiosna/lato","086671",48,{"$f":"'Krok 2'!E204","v":0},0]
["MATERIAŁY EDUKACYJNE / MATERIAŁY ĆWICZENIOWE","Akademia pomysłów. Zajęcia wyrównawcze Zestaw","085611",549,{"$f":"'Krok 2'!E205","v":0},0]
["MATERIAŁY EDUKACYJNE / MATERIAŁY ĆWICZENIOWE","Akademia pomysłów. Uczeń z  niepełnosprawnością intelektualną w stopniu lekkim Zestaw","085591",549,{"$f":"'Krok 2'!E206","v":0},0]
["MATERIAŁY EDUKACYJNE / MATERIAŁY ĆWICZENIOWE","Akademia pomysłów. Uczeń ze spektrum autyzmu 1-3 Zestaw","085551",549,{"$f":"'Krok 2'!E207","v":0},0]
["MATERIAŁY EDUKACYJNE","Pewny start. Nowe cztery pory roku Karty matematyczne. Liczby","085938",57,{"$f":"'Krok 2'!E208","v":0},0]
["MATERIAŁY EDUKACYJNE","Pewny start. Nowe cztery pory roku Karty do nauki czytania i pisania. Litery i wyrazy","085937",73,{"$f":"'Krok 2'!E209","v":0},0]
["MATERIAŁY ĆWICZENIOWE","Pewny start. Nowe cztery pory roku Karty zadaniowe. Umiem to zrobić","085936",53,{"$f":"'Krok 2'!E210","v":0},0]
["MATERIAŁY ĆWICZENIOWE","Pewny start. Nowe cztery pory roku Karty pracy. Jesień","085932",67,{"$f":"'Krok 2'!E211","v":0},0]
["MATERIAŁY ĆWICZENIOWE","Pewny start. Nowe cztery pory roku Karty pracy. Wiosna, lato","085934",67,{"$f":"'Krok 2'!E212","v":0},0]
["MATERIAŁY ĆWICZENIOWE","Pewny start. Nowe cztery pory roku Karty pracy. Zima","085933",67,{"$f":"'Krok 2'!E213","v":0},0]
[null,"Funkcje psychofizyczne. Karty pracy. Grafomotoryka. Poziom 1","086531",73,{"$f":"'Krok 2'!E214","v":0},0]
[null,"Funkcje psychofizyczne. Karty pracy. Koncentracja uwagi. Poziom 1","086532",73,{"$f":"'Krok 2'!E215","v":0},0]
[null,"Funkcje psychofizyczne. Karty pracy. Percepcja wzrokowa. Poziom 1","086533",73,{"$f":"'Krok 2'!E216","v":0},0]
[null,"Funkcje psychofizyczne. Karty pracy. Percepcja słuchowa. Poziom 1","086534",73,{"$f":"'Krok 2'!E217","v":0},0]
[null,"Funkcje psychofizyczne.Karty pracy. Orientacja przestrzenna. Poziom 1","086535",73,{"$f":"'Krok 2'!E218","v":0},0]
[null,"Funkcje psychofizyczne. Karty pracy. Funkcjonowanie społeczne. Poziom 1","086536",73,{"$f":"'Krok 2'!E219","v":0},0]
[null,"Funkcje psychofizyczne. Karty pracy. Wypowiedzi ustne i pisemne. Poziom1","086537",73,{"$f":"'Krok 2'!E220","v":0},0]
["MATERIAŁY EDUKACYJNE","PWN Akademia pisania. Układanki obrazkowo-wyrazowe. Poznaję i utrwalam poprawną wpisownię wyrazów ó/u","049141",44,{"$f":"'Krok 2'!E221","v":0},0]
["MATERIAŁY EDUKACYJNE","PWN Akademia pisania. Układanki obrazkowo-wyrazowe. Poznaję i utrwalam poprawną wpisownię wyrazów rz/ż","049142",44,{"$f":"'Krok 2'!E222","v":0},0]
["MATERIAŁ EDUKACYJNY","Pewny start. Zaśpiewajmy razem. Śpiewnik z symbolami PCS","049741",90,{"$f":"'Krok 2'!E223","v":0},0]
["MATERIAŁ ĆWICZENIOWY","PWN Pewny start. Zaśpiewajmy razem. Zeszyt ćwiczeń Zeszyt plastyczno- grafomotoryczny do śpiewnika z symbolami PCS","049742",30,{"$f":"'Krok 2'!E224","v":0},0]
["MATERIAŁY ĆWICZENIOWE","Funkcje psychofizyczne. Funkcjonowanie społeczne 2","086542",73,{"$f":"'Krok 2'!E225","v":0},0]
["MATERIAŁY ĆWICZENIOWE","Funkcje psychofizyczne. Koncentracja uwagi 2","086538",73,{"$f":"'Krok 2'!E226","v":0},0]
["MATERIAŁY ĆWICZENIOWE","Funkcje psychofizyczne.Orientacja przestrzenna 2","086541",73,{"$f":"'Krok 2'!E227","v":0},0]
["MATERIAŁY ĆWICZENIOWE","Funkcje psychofizyczne. Percepcja słuchowa 2","086540",73,{"$f":"'Krok 2'!E228","v":0},0]
["MATERIAŁY ĆWICZENIOWE","Funkcje psychofizyczne.Percepcja wzrokowa 2","086539",73,{"$f":"'Krok 2'!E229","v":0},0]
["MATERIAŁY ĆWICZENIOWE","Funkcje psychofizyczne.Wypowiedzi ustne i pisemne 2","086543",73,{"$f":"'Krok 2'!E230","v":0},0]
["MATERIAŁ EDUKACYJNY","Pewny start. Mój dobry rok. Materiał edukacyjny. Lubię jesień, Lubię zimę, Lubię wiosnę, lubię lato","085831",100,{"$f":"'Krok 2'!E231","v":0},0]
["MATERIAŁY ĆWICZENIOWE","Pewny start. Mój dobry rok. Karty pracy. Czytanie i pisanie","085832",64,{"$f":"'Krok 2'!E232","v":0},0]
["MATERIAŁY EDUKACYJNE","Pewny start. Świat wokół mnie. Wycinanki. Emocje","086193",53,{"$f":"'Krok 2'!E233","v":0},0]
["MATERIAŁY EDUKACYJNE","Pewny start. Świat wokół mnie. Historyjki obrazkowe. Układam, opowiadam","086192",68,{"$f":"'Krok 2'!E234","v":0},0]
["MATERIAŁY EDUKACYJNE","Pewny start. Świat wokół mnie. Czytanki. Ola, Adam i ich świat","086195",53,{"$f":"'Krok 2'!E235","v":0},0]
["MATERIAŁ EDUKACYJNY","Pewny start. Wokół pór roku. Czytanki. Rozmowy Oli i Adama","086265",53,{"$f":"'Krok 2'!E236","v":0},0]
["MATERIAŁY ĆWICZENIOWE","Pewny start. Wokół pór roku. Karty pracy. Wokół jesieni","086262",47,{"$f":"'Krok 2'!E237","v":0},0]
["MATERIAŁY ĆWICZENIOWE","Pewny start. Wokół pór roku. Karty pracy. Wokół wiosny, wokół lata","086264",47,{"$f":"'Krok 2'!E238","v":0},0]
["MATERIAŁY ĆWICZENIOWE","Pewny start. Wokół pór roku. Karty pracy. Wokół zimy","086263",47,{"$f":"'Krok 2'!E239","v":0},0]
["MATERIAŁY ĆWICZENIOWE","Pewny start. Moja matematyka. Zestaw Kart pracy Jesień, Zima, Wiosna,lato. Poziom A","086481",187,{"$f":"'Krok 2'!E240","v":0},0]
["MATERIAŁY ĆWICZENIOWE","Pewny start. Moja matematyka. Karty pracy. Jesień. Poziom A","086482",67,{"$f":"'Krok 2'!E241","v":0},0]
["MATERIAŁY ĆWICZENIOWE","Pewny start. Moja matematyka. Karty pracy. Zima. Poziom A","086483",67,{"$f":"'Krok 2'!E242","v":0},{"$f":"E192*D192","v":0}]
["MATERIAŁY ĆWICZENIOWE","Pewny start. Moja matematyka. Karty pracy. Wiosna, lato. Poziom A","086484",67,{"$f":"'Krok 2'!E243","v":0},0]
["MATERIAŁY ĆWICZENIOWE","Pewny start. Moja matematyka. Zestaw Kart pracy. Jesień, Zima, Wiosna,lato. Poziom B","086485",187,{"$f":"'Krok 2'!E244","v":0},0]
["MATERIAŁY ĆWICZENIOWE","Pewny start. Moja matematyka. Karty pracy. Jesień. Poziom B","086486",67,{"$f":"'Krok 2'!E245","v":0},0]
["MATERIAŁY ĆWICZENIOWE","Pewny start. Moja matematyka. Karty pracy. Zima. Poziom B","086487",67,{"$f":"'Krok 2'!E246","v":0},0]
["MATERIAŁY ĆWICZENIOWE","Pewny start. Moja matematyka. Karty pracy. Wiosna, lato. Poziom B","086488",67,{"$f":"'Krok 2'!E247","v":0},0]
["MATERIAŁY ĆWICZENIOWE","Pewny start. Moja codzienność. Karty pracy. Jesień","085811",52,{"$f":"'Krok 2'!E248","v":0},0]
["MATERIAŁY ĆWICZENIOWE","Pewny start. Moja codzienność. Karty pracy. Wiosna, lato","085813",52,{"$f":"'Krok 2'!E249","v":0},0]
["MATERIAŁY ĆWICZENIOWE","Pewny start. Moja codzienność. Karty pracy. Zima","085812",52,{"$f":"'Krok 2'!E250","v":0},0]
["MATERIAŁY EDUKACYJNE / MATERIAŁY ĆWICZENIOWE","Akademia pomysłów. Uczeń ze spektrum autyzmu 4-8 Zestaw","085571",549,{"$f":"'Krok 2'!E251","v":0},0]
["MATERIAŁ EDUKACYJNY","Pewny start. Odkrywam świat. Materiał edukacyjny. Moja książka. Poziom A","086112",117,{"$f":"'Krok 2'!E252","v":0},0]
["MATERIAŁY ĆWICZENIOWE","Pewny start. Odkrywam świat. Moje ćwiczenia. Poziom A","086111",64,{"$f":"'Krok 2'!E253","v":0},0]
[null,"Pewny start. Odkrywam świat. Moje ćwiczenia. Poziom B","086113",64,{"$f":"'Krok 2'!E254","v":0},0]
["MATERIAŁ ĆWICZENIOWY","Pewny start. Poznać i zrozumieć uczucia. Karty pracy. Nasz wewnętrzny świat","086142",47,{"$f":"'Krok 2'!E255","v":0},0]
["MATERIAŁY EDUKACYJNY","Pewny start. Poznać i zrozumieć uczucia. Poradnik pozytywny. Jak sobie radzić z uczuciami","086147",76,{"$f":"'Krok 2'!E256","v":0},0]
["MATERIAŁY EDUKACYJNY","Pewny start. Poznać i zrozumieć uczucia. Historyjki społeczne. Uczucia w nas i w relacjach ze światem","086146",68,{"$f":"'Krok 2'!E257","v":0},0]
["MATERIAŁY EDUKACYJNY","Pewny start. Poznać i zrozumieć uczucia. Historyjki obrazkowe. Co by było, gdyby","086148",100,{"$f":"'Krok 2'!E258","v":0},0]
["MATERIAŁY ĆWICZENIOWE","Funkcje psychofizyczne. Karty pracy. Koncentracja uwagi. Poziom 3","086544",73,{"$f":"'Krok 2'!E259","v":0},0]
["MATERIAŁY ĆWICZENIOWE","Funkcje psychofizyczne. Karty pracy. Percepcja wzrokowa. Poziom 3","086545",73,{"$f":"'Krok 2'!E260","v":0},0]
["MATERIAŁY ĆWICZENIOWE","Funkcje psychofizyczne. Karty pracy. Percepcja słuchowa. Poziom 3","086546",73,{"$f":"'Krok 2'!E261","v":0},0]
["MATERIAŁY ĆWICZENIOWE","Funkcje psychofizyczne. Karty pracy. Orientacja przestrzenna. Poziom 3","086547",73,{"$f":"'Krok 2'!E262","v":0},0]
["MATERIAŁY ĆWICZENIOWE","Funkcje psychofizyczne. Karty pracy. Funkcjonowanie społeczne. Poziom 3","086548",73,{"$f":"'Krok 2'!E263","v":0},0]
["MATERIAŁY ĆWICZENIOWE","Funkcje psychofizyczne. Karty pracy. Wypowiedzi ustne i pisemne. Poziom 3","086549",73,{"$f":"'Krok 2'!E264","v":0},0]
["MATERIAŁY EDUKACYJNE / MATERIAŁY ĆWICZENIOWE","PEWNY START. O DOJRZEWANIU. CHŁOPCY Blog Tomka. Czytanki","085961",55,{"$f":"'Krok 2'!E265","v":0},0]
["MATERIAŁY EDUKACYJNE / MATERIAŁY ĆWICZENIOWE","PEWNY START. O DOJRZEWANIU. CHŁOPCY Co to jest dojrzewanie? Historyjki społeczne","085962",55,{"$f":"'Krok 2'!E266","v":0},0]
["MATERIAŁY EDUKACYJNE / MATERIAŁY ĆWICZENIOWE","PEWNY START. O DOJRZEWANIU. CHŁOPCY Co warto wiedzieć o sobie? Karty pracy","085963",73,{"$f":"'Krok 2'!E267","v":0},0]
["MATERIAŁY EDUKACYJNE / MATERIAŁY ĆWICZENIOWE","PEWNY START. O DOJRZEWANIU. CHŁOPCY Dbam o siebie. Instrukcje","085964",55,{"$f":"'Krok 2'!E268","v":0},0]
["MATERIAŁY EDUKACYJNE / MATERIAŁY ĆWICZENIOWE","PEWNY START. O DOJRZEWANIU. CHŁOPCY Poradnik Metodyczny","085965",36,{"$f":"'Krok 2'!E269","v":0},0]
["MATERIAŁY EDUKACYJNE / MATERIAŁY ĆWICZENIOWE","PEWNY START. O DOJRZEWANIU. CHŁOPCY Zestaw","085966",225,{"$f":"'Krok 2'!E270","v":0},0]
["MATERIAŁY EDUKACYJNE / MATERIAŁY ĆWICZENIOWE","PEWNY START. O DOJRZEWANIU. DZIEWCZĘTA Co to jest dojrzewanie? Historyjki społeczne","086012",55,{"$f":"'Krok 2'!E271","v":0},0]
["MATERIAŁY EDUKACYJNE / MATERIAŁY ĆWICZENIOWE","PEWNY START. O DOJRZEWANIU. DZIEWCZĘTA Co warto wiedzieć o sobie? Karty pracy","086013",73,{"$f":"'Krok 2'!E272","v":0},0]
["MATERIAŁY EDUKACYJNE / MATERIAŁY ĆWICZENIOWE","PEWNY START. O DOJRZEWANIU. DZIEWCZĘTA Dbam o siebie. Instrukcje","086014",55,{"$f":"'Krok 2'!E273","v":0},0]
["MATERIAŁY EDUKACYJNE / MATERIAŁY ĆWICZENIOWE","PEWNY START. O DOJRZEWANIU. DZIEWCZĘTA Pamiętnik Zuzy. Czytanki","086011",55,{"$f":"'Krok 2'!E274","v":0},0]
["MATERIAŁY EDUKACYJNE / MATERIAŁY ĆWICZENIOWE","PEWNY START. O DOJRZEWANIU. DZIEWCZĘTA Poradnik Metodyczny","086015",36,{"$f":"'Krok 2'!E275","v":0},0]
["MATERIAŁY EDUKACYJNE / MATERIAŁY ĆWICZENIOWE","PEWNY START. O DOJRZEWANIU. DZIEWCZĘTA Zestaw","086016",225,{"$f":"'Krok 2'!E276","v":0},0]
["MATERIAŁ EDUKACYJNY","PWN Pewny start. Aktywni zawodowo. Materiał edukacyjny. ABC rękodzieła","049157",70,{"$f":"'Krok 2'!E277","v":0},0]
["MATERIAŁ EDUKACYJNY","PWN Pewny start. Aktywni zawodowo. Materiał edukacyjny. Pracuję w biurze","049164",70,{"$f":"'Krok 2'!E278","v":0},0]
["MATERIAŁ EDUKACYJNY","PWN Pewny start. Aktywni zawodowo. Materiał edukacyjny. Podaję do stołu","049169",70,{"$f":"'Krok 2'!E279","v":0},0]
["MATERIAŁ EDUKACYJNY","PWN Pewny start. Aktywni zawodowo. Materiał edukacyjny. ABC pracy w kuchni","049167",70,{"$f":"'Krok 2'!E280","v":0},0]
["MATERIAŁ EDUKACYJNY","PWN Pewny start. Aktywni zawodowo. Materiał edukacyjny. Obsługa AGD  w kuchni","049168",70,{"$f":"'Krok 2'!E281","v":0},0]
["MATERIAŁ EDUKACYJNY","Pewny start. Aktywni zawodowo. Prace porządkowe. Czynności porządkowe. Materiał edukacyjny","085713",70,{"$f":"'Krok 2'!E282","v":0},0]
["MATERIAŁY ĆWICZENIOWE","Pewny start. Aktywni zawodowo. Karty pracy 1. Rękodzieło","085705",61,{"$f":"'Krok 2'!E283","v":0},0]
["MATERIAŁY ĆWICZENIOWE","Pewny start. Aktywni zawodowo. Karty pracy 2. Rękodzieło","085706",61,{"$f":"'Krok 2'!E284","v":0},0]
["MATERIAŁY ĆWICZENIOWE","Pewny start. Aktywni zawodowo. Karty pracy 1. Prace biurowe","085703",61,{"$f":"'Krok 2'!E285","v":0},0]
["MATERIAŁY ĆWICZENIOWE","Pewny start. Aktywni zawodowo. Karty pracy 2. Prace biurowe","085704",61,{"$f":"'Krok 2'!E286","v":0},0]
["MATERIAŁY ĆWICZENIOWE","Pewny start. Aktywni zawodowo. Karty pracy 1. Zajęcia kulinarne","085707",61,{"$f":"'Krok 2'!E287","v":0},0]
["MATERIAŁY ĆWICZENIOWE","Pewny start. Aktywni zawodowo. Karty pracy 2. Zajęcia kulinarne","085708",61,{"$f":"'Krok 2'!E288","v":0},0]
["MATERIAŁY ĆWICZENIOWE","Pewny start. Aktywni zawodowo. Karty pracy 3. Zajęcia kulinarne","049172",61,{"$f":"'Krok 2'!E289","v":0},0]
["MATERIAŁY ĆWICZENIOWE","Pewny start. Aktywni zawodowo. Karty pracy 1. Ogrodnictwo","085701",61,{"$f":"'Krok 2'!E290","v":0},0]
["MATERIAŁY ĆWICZENIOWE","Pewny start. Aktywni zawodowo. Karty pracy 2. Ogrodnictwo","085702",61,{"$f":"'Krok 2'!E291","v":0},0]
["MATERIAŁY ĆWICZENIOWE","Pewny start. Aktywni zawodowo. Prace porządkowe. Karty pracy 1","085710",48,{"$f":"'Krok 2'!E292","v":0},0]
["MATERIAŁY ĆWICZENIOWE","Pewny start. Aktywni zawodowo. Prace porządkowe. Karty pracy 2","085711",48,{"$f":"'Krok 2'!E293","v":0},0]
["MATERIAŁY ĆWICZENIOWE","Pewny start. Aktywni zawodowo. Prace porządkowe. Karty pracy 3","085712",48,{"$f":"'Krok 2'!E294","v":0},0]
[]
[]
[null,null,null,"Wartość zamówienia:",null,{"$f":"SUM(H11:H59,F63:F244)","v":0}]